Cogmind - Beta 11.1 @@@ ROGUE MODE // 2022.05.01 @ 17:22:25 Player: Olga Result: Self-destructed Performance ------------- Evolutions (3) 1500 Regions Visited (5) 1000 Robots Destroyed (4) 20 Value Destroyed (42) 42 Prototype IDs (1) 20 Alien Tech Used (0) 0 Bonus (834) 834 TOTAL SCORE: 3416 Bonus ------- Pacifist 834 Cogmind --------- Core Integrity 673/700 Matter 260/300 Energy 148/150 System Corruption 0% Temperature Cool (6) Movement Flying (29) Location -7/Factory Parts ------- > --- POWER (1) -------- Micro Nuclear Core > --- PROPULSION (3) --- Cesium-ion Thruster Cooled VTOL Module Cooled VTOL Module > --- UTILITY (7) ------ Improved Sensor Array Seismic Detector Hardened Light Armor Plating Hacking Suite System Shield > --- WEAPON (2) ------- Scythe > --- INVENTORY (5) ---- Xenon Bombardment Thruster Xenon Bombardment Thruster Xenon Bombardment Thruster Hardened Medium Armor Plating Improved Light Armor Plating Peak State ------------ > --- POWER ------------ Micro Nuclear Core > --- PROPULSION ------- Cesium-ion Thruster Cooled VTOL Module Cooled VTOL Module > --- UTILITY ---------- Improved Sensor Array Seismic Detector Hardened Light Armor Plating Hacking Suite System Shield > --- WEAPON ----------- EM Pulse Gun Scythe > --- INVENTORY -------- Xenon Bombardment Thruster Xenon Bombardment Thruster Xenon Bombardment Thruster Hardened Medium Armor Plating Blade Saw [Rating: 34] Favorites ----------- Power Micro Nuclear Core Power Core Micro Nuclear Core Propulsion Cooled VTOL Module Hover Unit Combat Airjet Flight Unit Cooled VTOL Module Utility Hardened Light Armor Plating Device Seismic Detector Hackware System Shield Protection Hardened Light Armor Plating Weapon Scythe Energy Gun EM Pulse Gun Special Weapon Plasma Cutter Slashing Weapon Scythe Build | -11 -10 -10 -9 -8 -7 ------- Run | Scr Mat Min Mat Mat Fac Slots Evolved 6 | . . . 2 2 2 Power . | . . . . . . Propulsion 1 | . . . . . 1 Utility 5 | . . . 2 2 1 Weapon . | . . . . . . Parts Attached 21 | 2 . 2 1 10 6 Power 1 | . . . . . 1 Engine . | . . . . . . Core 1 | . . . . . 1 Reactor . | . . . . . . Propulsion 7 | . . 2 . 4 1 Treads . | . . . . . . Leg . | . . . . . . Wheel . | . . . . . . Hover 2 | . . 2 . . . Flight 5 | . . . . 4 1 Utility 7 | . . . 1 2 4 Device 2 | . . . . . 2 Storage . | . . . . . . Processor . | . . . . . . Hackware 2 | . . . . . 2 Protection 3 | . . . 1 2 . Artifact . | . . . . . . Weapon 6 | 2 . . . 4 . Energy Gun 3 | 2 . . . 1 . Energy Cannon . | . . . . . . Ballistic Gun . | . . . . . . Ballistic Cannon . | . . . . . . Launcher . | . . . . . . Special Weapon 2 | . . . . 2 . Impact Weapon . | . . . . . . Slashing Weapon 1 | . . . . 1 . Piercing Weapon . | . . . . . . Special Melee Weapon . | . . . . . . Unidentified Prototypes 1 | . . . . 1 . Parts Lost 2 | . . 2 . . . Power . | . . . . . . Propulsion . | . . . . . . Utility . | . . . . . . Weapon 2 | . . 2 . . . Highest Loss Streak 2 | . . 2 . . . To Critical Strikes . | . . . . . . Average Slot Usage (%) 36 | . 28 28 20 22 66 Hover 5 | . . 14 15 . . Flight 10 | . . . . 9 23 Device 3 | . . . . . 10 Hackware 3 | . . . . . 10 Protection 5 | . . . 5 4 7 Energy Gun 3 | . 28 14 . 1 5 Special Weapon 1 | . . . . 4 . Slashing Weapon 3 | . . . . 2 7 Naked Turns 42 | . . . 37 5 . Heaviest Build 15 | 3 3 3 5 9 15 Greatest Support 24 | 3 3 24 24 10 15 Greatest Overweight (x) 1 | . . . . 1 . Average Overweight (x) . | . . . . . . Largest Inventory Capacity 5 | 5 5 5 5 5 5 Average Capacity 5 | 5 5 5 5 5 5 Most Carried 5 | 5 5 5 5 5 5 Average Carried 4 | 5 5 5 5 4 4 Final Capacity 5 | 5 5 5 5 5 5 Final Carried 5 | 5 5 5 5 4 5 Class Distribution -------------------- 54% | Mutant 26% | Hacker-Sprinter 19% | Sprinter Dominant Class ---------------- Mutant | -10/Mines Mutant | -9/Materials Mutant | -8/Materials Hacker-Sprinter | -7/Factory Resources | -11 -10 -10 -9 -8 -7 ----------- Run | Scr Mat Min Mat Mat Fac Matter Collected 362 | 220 . 7 . . 135 Remotely . | . . . . . . Salvage Created 135 | . . . . . 135 Parts 12 | . . . . . 12 Haulers Intercepted . | . . . . . . Recyclers Shooed . | . . . . . . Parts Field Recycled . | . . . . . . Retrieved Matter . | . . . . . . Parts Self-Destructed . | . . . . . . Prevented . | . . . . . . Kills | -11 -10 -10 -9 -8 -7 ------- Run | Scr Mat Min Mat Mat Fac Combat Hostiles Destroyed . | . . . . . . Classes Destroyed 4 | . . . . . 4 Builder 1 | . . . . . 1 Tunneler 1 | . . . . . 1 Recycler 1 | . . . . . 1 Operator 1 | . . . . . 1 Best Kill Streak 3 | . . . . . 3 Combat Bots Only . | . . . . . . Max Kills in Single Turn 1 | . . . . . 1 Gunslinging . | . . . . . . Exploded . | . . . . . . Melee . | . . . . . . Uniques/NPCs Destroyed . | . . . . . . Combat | -11 -10 -10 -9 -8 -7 -------- Run | Scr Mat Min Mat Mat Fac Damage Taken 768 | . . 321 215 158 74 Core 451 | . . 164 187 73 27 Absorbed by Shields . | . . . . . . Core Remaining (%) 68 | 100 . 34 53 86 . Volleys Fired 3 | . . . . 3 . Largest 1 | . . . . 1 . Hottest 20 | . . . . 20 . Shots Fired 3 | . . . . 3 . Gun . | . . . . . . Cannon . | . . . . . . Launcher . | . . . . . . Special 3 | . . . . 3 . Kinetic . | . . . . . . Thermal 3 | . . . . 3 . Explosive . | . . . . . . Electromagnetic . | . . . . . . Robot Hit Streak 1 | . . . . 1 . Robot Miss Streak 2 | . . . . 2 . Penetration Max . | . . . . . . Secondary Targets . | . . . . . . Shots Hit Robots 5 | . . . . 1 4 Core Hits 3 | . . . . . 3 Critical Kills . | . . . . . . Critical Parts Destroyed . | . . . . . . Critical Strikes . | . . . . . . Melee Attacks 7 | . . . . 2 5 Impact . | . . . . . . Slashing 7 | . . . . 2 5 Piercing . | . . . . . . Sneak Attacks 3 | . . . . . 3 Combat Hostiles . | . . . . . . Follow-up Attacks . | . . . . . . Damage Inflicted 260 | . . . . 13 247 Guns . | . . . . . . Cannons . | . . . . . . Explosions . | . . . . . . Melee 247 | . . . . . 247 Ramming 2 | . . . . 2 . Kinetic . | . . . . . . Thermal 11 | . . . . 11 . Explosive . | . . . . . . Electromagnetic . | . . . . . . Impact . | . . . . . . Slashing 247 | . . . . . 247 Piercing . | . . . . . . Highest Corruption . | . . . . . . Average Corruption . | . . . . . . Corruption Purged . | . . . . . . Corruption Blocked . | . . . . . . Overload Shots . | . . . . . . Overflow Damage 30 | . . . . . 30 Projectiles . | . . . . . . Explosions . | . . . . . . Melee 30 | . . . . . 30 Knockbacks . | . . . . . . Impact . | . . . . . . Kinetic . | . . . . . . Secondary . | . . . . . . Self-Inflicted Damage 1 | . . . . 1 . Shots . | . . . . . . Rammed 1 | . . . . 1 . Targets Rammed 1 | . . . . 1 . Kicked . | . . . . . . Crushed . | . . . . . . Highest Temperature 7 | . . . . 7 . Average Temperature 7 | . . . . 7 . Received Heat Transfer 162 | . . 6 75 63 18 Siege Activations . | . . . . . . Robots Corrupted . | . . . . . . Combat Hostiles . | . . . . . . Parts Fried . | . . . . . . Impact Corruptions . | . . . . . . Robots Melted . | . . . . . . Combat Hostiles . | . . . . . . Parts Melted . | . . . . . . Heat Transferred 37 | . . . . 37 . Parts Sabotaged . | . . . . . . Parts Stolen . | . . . . . . Parts Stripped . | . . . . . . Power Chain Reactions . | . . . . . . Missiles Intercepted . | . . . . . . Alert | -11 -10 -10 -9 -8 -7 ------- Run | Scr Mat Min Mat Mat Fac Peak Influence 191 | . . . 162 68 191 Initial 68 | . . . . 68 21 Average 61 | . . . 59 30 105 Maximum Alert Level . | . . . . . . Low Security (%) 100 | 100 100 100 100 100 100 Level 1 . | . . . . . . Level 2 . | . . . . . . Level 3 . | . . . . . . Level 4 . | . . . . . . Level 5 . | . . . . . . High Security . | . . . . . . Max Security . | . . . . . . Squads Dispatched 3 | . . . 2 . 1 Investigation 2 | . . . 1 . 1 Extermination . | . . . . . . Reinforcement 1 | . . . 1 . . Assault . | . . . . . . Garrison . | . . . . . . Intercept . | . . . . . . Searches Triggered . | . . . . . . Construction Impeded . | . . . . . . Haulers Reinforced . | . . . . . . Active Scanning Responses . | . . . . . . Cargo Convoy Interrupts . | . . . . . . Stealth | -11 -10 -10 -9 -8 -7 --------- Run | Scr Mat Min Mat Mat Fac Distress Signals . | . . . . . . Communications Jammed . | . . . . . . Distress Signals . | . . . . . . Times Spotted 30 | . . 4 14 4 8 Peak Tracking Total 11 | . . 3 11 3 5 Tactical Retreats 4 | . . . 2 . 2 Traps | -11 -10 -10 -9 -8 -7 ------- Run | Scr Mat Min Mat Mat Fac Traps Triggered . | . . . . . . Indirectly . | . . . . . . Trap Hack Attempts . | . . . . . . Triggered . | . . . . . . Disarmed . | . . . . . . Reprogrammed . | . . . . . . Reused . | . . . . . . Traps Extracted . | . . . . . . Installed . | . . . . . . Triggered . | . . . . . . Machines | -11 -10 -10 -9 -8 -7 ---------- Run | Scr Mat Min Mat Mat Fac Machines Disabled . | . . . . . . Max in Single Turn . | . . . . . . Machines Sabotaged . | . . . . . . Garrisons Compromised . | . . . . . . Overloaded Fab Kills . | . . . . . . Hacking | -11 -10 -10 -9 -8 -7 --------- Run | Scr Mat Min Mat Mat Fac Machines Accessed 11 | . . . 3 5 3 Terminals 11 | . . . 3 5 3 Fabricators . | . . . . . . Repair Stations . | . . . . . . Recycling Units . | . . . . . . Scanalyzers . | . . . . . . Garrison Access . | . . . . . . Total Hacks 37 | . . . 14 16 7 Successful 17 | . . . 7 8 2 Failed 20 | . . . 7 8 5 Catastrophic 4 | . . . . 1 3 Database Lockouts . | . . . . . . Manual 31 | . . . 13 14 4 Terminals 37 | . . . 14 16 7 Fabricators . | . . . . . . Repair Stations . | . . . . . . Recycling Units . | . . . . . . Scanalyzers . | . . . . . . Garrison Access . | . . . . . . Terminal Hacks 7 | . . . 3 3 1 Level Access Points 2 | . . . 1 1 . Branch Access Points 1 | . . . 1 . . Terminal Index 2 | . . . 1 1 . Alert Level 1 | . . . . . 1 Unreport Threat 1 | . . . . 1 . Fabricator Hacks . | . . . . . . Repair Station Hacks . | . . . . . . Recycling Unit Hacks . | . . . . . . Scanalyzer . | . . . . . . Garrison Access Hacks . | . . . . . . Unauthorized Hacks 9 | . . . 3 5 1 Terminals 9 | . . . 3 5 1 Botnet 9 | . . . 3 5 1 Fabricators . | . . . . . . Repair Stations . | . . . . . . Recycling Units . | . . . . . . Scanalyzers . | . . . . . . Garrison Access . | . . . . . . Data Cores Recovered . | . . . . . . Used . | . . . . . . Hacking Detections 10 | . . . 2 5 3 Full Trace Events 2 | . . . 1 . 1 Feedback Events . | . . . . . . Feedback Blocked . | . . . . . . Robot Schematics Acquired . | . . . . . . Robots Built . | . . . . . . Authchips . | . . . . . . Time . | . . . . . . Total Robot Build Rating . | . . . . . . Part Schematics Acquired . | . . . . . . Parts Built . | . . . . . . Authchips . | . . . . . . Time . | . . . . . . Total Part Build Rating . | . . . . . . Parts Repaired . | . . . . . . Time . | . . . . . . Parts Recycled . | . . . . . . Recycled Matter . | . . . . . . Retrieved Matter . | . . . . . . Retrieved Components . | . . . . . . Parts Scanalyzed . | . . . . . . Part Schematics Acquired . | . . . . . . Parts Damaged . | . . . . . . Bothacking | -11 -10 -10 -9 -8 -7 ------------ Run | Scr Mat Min Mat Mat Fac Used RIF Installer . | . . . . . . Robots Hacked . | . . . . . . Non-combat . | . . . . . . Combat . | . . . . . . Robot Hacks Applied . | . . . . . . Relay Couplers Released . | . . . . . . Fabnet Peak Effective % . | . . . . . . Robots Rewired . | . . . . . . Allies Hacked . | . . . . . . Hacks Repelled . | . . . . . . Allies | -11 -10 -10 -9 -8 -7 -------- Run | Scr Mat Min Mat Mat Fac Total Allies 3 | . . 3 . . . Largest Group 1 | . . 1 . . . Highest-Rated Group 16 | . . 16 . . . Highest-Rated Ally 16 | . . 16 . . . Total Orders . | . . . . . . Ally Attacks 8 | . . 8 . . . Total Damage 70 | . . 70 . . . Kills . | . . . . . . Allies Corrupted . | . . . . . . Allies Melted . | . . . . . . Intel | -11 -10 -10 -9 -8 -7 ------- Run | Scr Mat Min Mat Mat Fac Robot Analysis Total . | . . . . . . Derelict Logs Recovered . | . . . . . . Drone Launches . | . . . . . . Drone Recoveries . | . . . . . . Exploration | -11 -10 -10 -9 -8 -7 ------------- Run | Scr Mat Min Mat Mat Fac Turns Passed 437 | 5 8 18 130 134 142 Spaces Moved 827 | 5 15 27 192 263 325 Core 178 | 5 15 21 74 63 . Treads . | . . . . . . Legs . | . . . . . . Wheels . | . . . . . . Hover 124 | . . 6 118 . . Flight 525 | . . . . 200 325 Fastest Speed 29 | 50 50 50 50 32 29 Average Speed 41 | 50 50 56 65 37 29 Slowest Speed 100 | 50 50 80 76 100 29 Overloaded Moves . | . . . . . . Propulsion Burnouts . | . . . . . . Robots Hopped 11 | . . . . 6 5 Cave-ins Triggered . | . . . . . . Exploration Rate (%) 14 | 3 5 11 27 29 14 Regions Visited 5 Branch Regions 1 Pre-discovered Areas . | . . . . . . Known Exits Taken 2 | . . . 1 1 . Unknown Exits Taken 3 | 1 1 1 . . . Scrap Searched . | . . . . . . Spaces Dug 2 | . . . . 2 . Terrain Destroyed 2 | . . . . 2 . Melee 2 | . . . . 2 . Projectile . | . . . . . . AOE . | . . . . . . Terrain Rammed . | . . . . . . Walls Destroyed . | . . . . . . Machines Disabled . | . . . . . . Actions | -11 -10 -10 -9 -8 -7 --------- Run | Scr Mat Min Mat Mat Fac Total 887 | 6 14 28 196 283 360 Wait 20 | . . . . . 20 Move 802 | 4 14 26 191 252 315 Hop 10 | . . . . 5 5 Pick Up 10 | . . . . 4 6 Fast Attach 13 | 2 . 2 1 5 3 Attach 8 | . . . . 5 3 Detach 3 | . . . 1 2 . Swap . | . . . . . . Drop 11 | . . . 3 5 3 Fire 3 | . . . . 3 . Melee 7 | . . . . 2 5 Ram . | . . . . . . Kick . | . . . . . . Crush . | . . . . . . Escape Stasis . | . . . . . . Rewire . | . . . . . . Trap . | . . . . . . Miscellaneous . | . . . . . . Route ------- -11/Scrapyard -10/Materials -10/Mines -9/Materials (discovered 4 exits: *Mat x3 / Min) -8/Materials (discovered 3 exits: *Fac x3) -7/Factory History --------- Turn | Location | Event 1 | -11/Scrapyard | Released all parts (6) 1 | -11/Scrapyard | Discovered new exit (range 3) 6 | -11/Scrapyard | Entered Materials 6 | -10/Materials | Discovered new exit (range 15) 14 | -10/Materials | Entered Mines 15 | -10/Mines | Assembled infested the area 16 | -10/Mines | Assisted by bots powering up and referring to "LRC-V3" 20 | -10/Mines | Assisted by a Guerilla fighting off Assembled 24 | -10/Mines | Discovered new exit (range 6) 27 | -10/Mines | Core integrity fell below 50% 32 | -10/Mines | Entered Materials 32 | -9/Materials | Evolved 2 slots: Utility x2 100 | -9/Materials | Identified exit to Mines 124 | -9/Materials | Identified exit to Materials 162 | -9/Materials | Entered another Materials area 162 | -8/Materials | Evolved 2 slots: Utility x2 273 | -8/Materials | Identified exit to Factory 296 | -8/Materials | Entered Factory 296 | -7/Factory | Evolved 2 slots: Propulsion x1, Utility x1 438 | -7/Factory | Self-destructed Last Messages --------------- >>Trojan(Botnet) Trojan loaded successfully. Testing... Terminal linked with 0 systems. Awaiting botnet instructions. 00375_ Sneak attack on R-06 Scavenger. 00375_ R-06 Scavenger destroyed. 00380_ Acquired 80 matter. 00382_ Sneak attack on T-07 Excavator. 00382_ T-07 Excavator destroyed. 00384_ Acquired 14 matter. 00387_ Acquired Hrd. Medium Armor Plating. 00392_ Acquired Mic. Nuclear Core. 00394_ Dropped EM Pulse Gun. 00395_ Dropped Blade Saw. 00396_ Acquired Imp. Light Armor Plating. 00402_ K-01 Serf releases G-47 Trooper into floor hatch. 00402_ K-01 Serf pushes L-41 Fighter. 00403_ K-01 Serf releases L-41 Fighter into floor hatch. 00406_ K-01 Serf collects debris. Map ----- +----------------------------------------------------+ | ####+###?????????# # | | #???###+###?# ! # | | ######+######## #???# #######+#########+#### | | ###?????????????# ##### | | ????????????????# | | ????????????????####### ! ] | | ??????????????????????# ###################### | | ??????????????????????### ###????????????###?#?### | | ????????????????????????# #???######?????# | | ????????????????????????# #??? ####### """"""" | | ????????????????????????# #?? # # """"""" | | ????????????????????????# #?? # # """"""" | | ????????????????????????# #? ?# # """"""" | | ????????????????????????# #? """"?# # | | ????????????????????????# # """"?# + | | ????????????????????????# # """" # # | | ????????????????????????# + """" # # ![[ | | ???????????????????????## # # # [[ | | ???????????????????????# ########## # [[ | | ???????????????????????#T + | | ?????????#############?## ######### | | ?????????# ## ??????? | | ?????????# # ??????? | | ?????????# + ??????? | | ?????????# # u ###########+#+##??????? | | ?????????# ##@##?????????????????????? | | ?????????# ??# #??????????????????????? | | ?????????#############??# #??????????????????????? | | ????????????????????????#+#??????????????????????? | | ?????????????????????????????????????????????????? | | ?????????????????????????????????????????????????? | | ?????????????????????????????????????????????????? | | ?????????????????????????????????????????????????? | | ?????????????????????????????????????????????????? | | | | | | | | | | | | | | | | | | | | | | | | | | | | | | | | | +----------------------------------------------------+ Best States ------------- Heat Dissipation 34 Energy Generation 15 Energy Capacity 150 Matter Stores 300 Matter Capacity 300 Sight Range 16 Robot Scan Range 15 Terrain Scan Density 10 Armor Coverage 150 Evasion (%) 64 Offensive Hacking 10 Defensive Hacking 10 Item Schematics ----------------- None Robot Schematics ------------------ None Fabricated ------------ Nothing Alien Tech Used ----------------- None Achievements -------------- None Challenges ------------ None Game ------ Seed InsulationTiamatSheargun Manual? 0 Play Time 00:13:59 Cumulative 143.1 hours Start 2022.05.01 @ 17:04:26 End 2022.05.01 @ 17:22:25 Sessions 1 Manual Loads 0 Difficulty Rogue Special Mode None Game No. 207 Rogue 206 Adventurer 0 Explorer 1 Win Type - Total 5 Types 5/0/0/0/0/0/0/0/0 Lore% 59 Gallery% 61 Achievement% 50 Wizard Run 0 Options --------- ASCII 1 Keyboard 0 Movement Vi Keybinds 0 Fullscreen 1 Font 18/SmallcapsGlow Map View 76x50 Tactical HUD 1 Map Filters NONE Filters NONE Steam 1 RUN: 65111664-fe8d-4515-a515-2471cc574f69